[Event "FIDE World Cup O12-TB 2024"]
[Site "Batumi"]
[Date "2024.07.01"]
[Round "1.1"]
[White "Obidov, Biloliddin"]
[Black "Qu, Haoming"]
[Result "1-0"]
[ECO "B01"]
[WhiteElo "1998"]
[BlackElo "1877"]
[Annotator "TA"]
[PlyCount "99"]
[EventDate "2024.06.23"]
[EventType "swiss"]
[EventCountry "GEO"]
[SourceTitle "playchess.com"]
[Source "ChessBase"]
[SourceQuality "1"]
[TimeControl "5400+30"]

{[%evp 16,98,99,92,89,62,49,65,134,133,170,154,161,168,150,158,150,152,147,99,289,179,189,180,159,188,210,162,529,525,727,743,742,733,713,708,810,810,793,760,900,900,1423,1557,29973,29974,5497,29975,29976,29976,29977,29978,29976,29978,29976,2954,29969,29966,29970,29971,7170,10453,29962,9574,29977,29977,29987,29980,29988,29989,29990,29990,29991,29992,29993,29994,29994,29995,29995,29996,29997,29998,29998,29999,29999]} 1. e4 {[%emt 0:00:01]} d5 {[%emt 0:00:17]} 2. exd5 {[%emt 0:00:04]} Qxd5 {[%emt 0:00:05]} 3. Nc3 {[%emt 0:00:06]} Qa5 {[%emt 0:00:27]} 4. d4 {[%emt 0:00:20]} Nf6 {[%emt 0:00:12]} 5. Bc4 {[%emt 0:00:33]} c6 {[%emt 0:04:29]} 6. Nf3 {[%emt 0:01:34]} Bf5 {[%emt 0:00:19]} 7. Bd2 {[%emt 0:07:50]} Qc7 {[%emt 0:03:55]} 8. Ne5 {[%emt 0:02:19]} e6 {[%emt 0:00:44]} 9. g4 {[%emt 0:01:42]} Be4 {[%emt 0:00:59]} 10. Nxe4 {[%emt 0:01:02]} Nxe4 {[%emt 0:00:01]} 11. Bf4 {[%emt 0:02:51]} Bd6 {[%emt 0:01:12] [#]} (11... Nd7 $14) 12. Qe2 $1 $16 {[%emt 0:02:46] Active counter play!} Qa5+ {[%emt 0:06:33]} 13. Kd1 {[%emt 0:16:54]} Bxe5 {[%emt 0:04:27]} 14. Bxe5 {[%emt 0:00:17]} Nf6 {[%emt 0:00:20] [#]} 15. Bxf6 $1 {[%emt 0:06:51]} gxf6 {[%emt 0:00:11] [#]} 16. Bxe6 {[%emt 0:00:31][%mdl 512]} O-O {[%emt 0:01:48][%cal Of8e8,Bh8f8,Bf8d8,Bd8d4][%mdl 32] Hoping for ...Re8!} 17. Bc4 {[%emt 0:05:36]} (17. Bf5 $142) 17... c5 $2 {[%emt 0:02:29] This costs Black the game.} (17... Nd7 $16 {was necessary.}) 18. Bd3 {[%emt 0:02:38] Threatens to win with Qe4.} c4 {[%emt 0:04:21]} 19. Bxc4 {[%emt 0:14:43] aiming for Qe4.} Nc6 {[%emt 0:00:27][%cal Oa8d8]} 20. c3 {[%emt 0:06:49]} Rfd8 {[%emt 0:03:30][%cal Oc6d4]} 21. Qe4 {[%emt 0:10:58] Strongly threatening Bd3.} Qb6 $2 {[%emt 0:08:36]} (21... Qe5 {is more resistant.} 22. Qxe5 fxe5) 22. Bd3 $18 {[%emt 0:01:57]} Nxd4 {[%emt 0:06:52]} 23. Qxh7+ {[%emt 0:00:39]} Kf8 {[%emt 0:00:00][%cal Bg8f8,Bf8e7,Be7d7,Bd7c7,Bc7b6][%mdl 32]} 24. Qh6+ {[%emt 0:01:29]} Ke7 {[%emt 0:00:35]} 25. cxd4 {[%emt 0:01:12]} Rxd4 {[%emt 0:00:19]} 26. Re1+ {[%emt 0:00:10]} Kd7 {[%emt 0:00:15]} 27. Qe3 {[%emt 0:01:52]} Qd6 {[%emt 0:04:30] Repels Qe7+} 28. Ke2 {[%emt 0:01:12]} a6 {[%emt 0:00:17] Inhibits Bb5+.} 29. Bf5+ {[%emt 0:00:15]} Kc7 {[%emt 0:00:11]} 30. Rac1+ {[%emt 0:00:25]} Kb6 {[%emt 0:03:19]} 31. Red1 {[%emt 0:00:29]} Rd8 {[%emt 0:01:55]} 32. Rxd4 {[%emt 0:00:14]} Qxd4 {[%emt 0:00:04]} 33. Qxd4+ {[%emt 0:00:06]} Rxd4 {[%emt 0:00:03] KRB-KR} 34. h4 {[%emt 0:00:06]} Rd8 {[%emt 0:01:48]} 35. h5 {[%emt 0:00:07]} (35. Rc8 $142 Rxc8 36. Bxc8 Kc7 37. h5 (37. Bf5 Kd6 38. h5 Ke7 39. b4 Ke8 40. h6 Kf8 41. h7 Kg7) 37... Kxc8 38. h6 Kd7 39. h7 b5 40. h8=Q (40. h8=R f5 $18)) 35... Rh8 {[%emt 0:00:04]} 36. Rc8 {[%emt 0:00:07]} Rh6 {[%emt 0:00:03]} 37. f4 {[%emt 0:00:15]} a5 {[%emt 0:02:11][%cal Ba6a5,Ba5a4][%mdl 32]} 38. Rf8 {[%emt 0:00:11]} a4 {[%emt 0:00:07]} 39. Rxf7 {[%emt 0:00:07] Rh7 would kill now.} Kc5 {[%emt 0:00:05]} 40. Bg6 {[%emt 0:00:14] White mates.} b5 {[%emt 0:00:12][%cal Bb7b5,Bb5b4,Bb4a3][%mdl 32]} 41. Rxf6 {[%emt 0:00:17]} b4 {[%emt 0:04:06]} 42. Rf8 {[%emt 0:00:25]} a3 {[%emt 0:00:08]} 43. bxa3 {[%emt 0:00:07]} bxa3 {[%emt 0:00:08]} 44. g5 {[%emt 0:00:06]} Rxg6 {[%emt 0:00:05]} 45. hxg6 {[%emt 0:00:05] KR-KP} Kd5 {[%emt 0:00:23]} 46. g7 {[%emt 0:00:11]} Kd4 {[%emt 0:00:02]} 47. g8=Q {[%emt 0:00:15]} Kc3 {[%emt 0:00:05]} 48. Rc8+ {[%emt 0:00:09]} Kb2 {[%emt 0:00:09]} 49. Qb3+ {[%emt 0:00:06]} Ka1 {[%emt 0:00:06]} 50. Rc1# {[%emt 0:00:06] Weighted Error Value: White=0.16 (very precise) /Black=0.64.  Loses game:     	---       	Black=1      Mistake:       	White=1     	Black=2      Inaccurate:     	White=2     	Black=1      OK:         	White=5     	Black=4      Best:        	White=1     	Black=1      Strong:       	White=2     	---        Brilliant:      	White=1     	---} 1-0

[Event "FIDE World Cup O12-TB 2024"]
[Site "Batumi"]
[Date "2024.07.01"]
[Round "1.2"]
[White "Gabadadze, Gabriel"]
[Black "Bulgak, Damir"]
[Result "1/2-1/2"]
[ECO "B52"]
[WhiteElo "1975"]
[BlackElo "1931"]
[Annotator "TA"]
[PlyCount "102"]
[EventDate "2024.06.23"]
[EventType "swiss"]
[EventCountry "GEO"]
[SourceTitle "playchess.com"]
[Source "ChessBase"]
[SourceQuality "1"]
[TimeControl "5400+30"]

{[%evp 9,102,11,23,3,8,0,12,2,17,-25,-4,0,-10,-10,0,0,-10,-15,0,-3,-7,-17,-9,-38,-43,-54,-52,-69,-67,-48,-60,-60,-59,-77,-67,-57,-10,-32,-11,-19,-24,-9,-26,-25,-37,-27,-16,-76,-73,-99,-98,-127,-110,-154,-160,-171,-170,-158,-153,-159,-140,-140,-114,-129,-125,-141,-133,-164,-145,-157,-163,-170,-56,-168,-8,-8,0,0,0,0,0,0,0,0,0,0,0,0,0,0,0,0,0,-8,-8]} 1. e4 {[%emt 0:00:01]} c5 {[%emt 0:00:09]} 2. Nf3 {[%emt 0:00:05]} d6 {[%emt 0:00:21]} 3. Bb5+ {[%emt 0:00:01]} Bd7 {[%emt 0:00:10]} 4. Bxd7+ {[%emt 0:00:04]} Qxd7 {[%emt 0:00:31]} 5. O-O {[%emt 0:00:24]} Nc6 {[%emt 0:00:25]} 6. Qe2 {[%emt 0:00:59]} g6 {[%emt 1:31:54]} 7. c3 {[%emt 0:02:19]} Bg7 {[%emt 0:00:00] Against d4} 8. Rd1 {[%emt 0:00:54]} e5 {[%emt 0:00:00]} 9. Na3 {[%emt 0:03:45][%cal Od2d4]} Nge7 {[%emt 0:00:00]} 10. Nc2 {[%emt 0:02:37]} O-O {[%emt 0:00:00]} 11. d4 {[%emt 0:01:58]} exd4 {[%emt 0:00:00]} 12. cxd4 {[%emt 0:00:22]} Nxd4 {[%emt 0:00:00]} 13. Ncxd4 {[%emt 1:23:31]} cxd4 {[%emt 0:00:00]} 14. Nxd4 {[%emt 0:00:00]} d5 {[%emt 0:00:00]} 15. Bg5 {[%emt 0:00:00]} Rfe8 {[%emt 0:00:00]} 16. Qb5 {[%emt 0:00:00]} Rad8 {[%emt 0:00:00]} 17. exd5 {[%emt 0:00:00]} Qxd5 {[%emt 0:00:00]} 18. Qxd5 {[%emt 0:00:00]} Rxd5 {[%emt 0:00:00]} 19. Nf3 {[%emt 0:00:00]} Bxb2 {[%emt 0:00:00]} 20. Rxd5 {[%emt 0:00:00]} Nxd5 {[%emt 0:00:00]} ({Much weaker is} 20... Bxa1 21. Rd7 Nc6 22. Rxb7 $14) 21. Rb1 {[%emt 0:00:00]} Re2 {[%emt 0:00:00]} 22. Rd1 {[%emt 0:00:00]} Nf6 {[%emt 0:00:00]} (22... Nb6 $15) 23. Kf1 $1 $11 {[%emt 0:00:00]} Re6 {[%emt 0:00:00]} 24. Rb1 $1 {[%emt 0:00:00]} Rb6 {[%emt 0:00:00]} 25. Be3 {[%emt 0:00:00] [#]} Bd4 {[%emt 0:00:00]} 26. Rxb6 {[%emt 0:00:00]} Bxb6 {[%emt 0:10:00]} 27. Bxb6 {[%emt 0:00:00]} axb6 {[%emt 0:00:00][%mdl 4096] Endgame. KN-KN} 28. Nd4 {[%emt 0:00:00]} (28. Ke2 $11) 28... Kf8 $17 {[%emt 0:00:00]} 29. f3 {[%emt 0:02:32]} Ke7 {[%emt 0:00:00]} 30. a3 {[%emt 0:01:07]} Nd5 {[%emt 0:00:00]} 31. g3 {[%emt 0:01:33]} Nc3 {[%emt 0:00:00]} 32. Kf2 {[%emt 0:00:55]} Kd6 {[%emt 0:00:00]} 33. Ke3 {[%emt 0:01:00]} Nb1 {[%emt 0:00:00]} 34. Nb5+ {[%emt 0:02:40]} Kc5 {[%emt 0:00:00]} 35. a4 {[%emt 0:00:11]} Kb4 {[%emt 0:00:00][%cal Ob1a3] [#] Threatens to win with ...Na3!} 36. Nd6 {[%emt 0:00:41][%csl LRb7,LRf7]} f5 {[%emt 0:00:00]} 37. Nxb7 {[%emt 0:00:47]} Kxa4 {[%emt 0:00:00]} 38. Kd3 {[%emt 0:00:07]} Kb4 {[%emt 0:00:57]} 39. g4 {[%emt 0:00:47]} fxg4 {[%emt 0:01:37]} 40. fxg4 {[%emt 0:00:07]} Na3 {[%emt 0:00:32]} (40... b5 $19 {Hoping for ...Nc3.} 41. Nd6 Na3) 41. Nd6 {[%emt 0:00:54]} (41. h4 $15) 41... Kc5 $2 {[%emt 0:02:10]} (41... b5 $19 {Strongly threatening ...Nc4.} 42. Kd4 Kb3) 42. Ne4+ $11 {[%emt 0:00:30] The position is equal.} Kd5 {[%emt 0:00:18]} 43. Nf6+ {[%emt 0:00:29]} Ke5 {[%emt 0:00:05]} 44. Nxh7 {[%emt 0:00:36]} Kf4 {[%emt 0:00:03]} 45. h3 {[%emt 0:00:18]} Kg3 {[%emt 0:00:21]} 46. Nf8 {[%emt 0:00:36]} g5 {[%emt 0:00:21]} 47. Ne6 {[%emt 0:00:11]} Kxh3 {[%emt 0:00:28]} 48. Nxg5+ {[%emt 0:00:11]} Kxg4 {[%emt 0:00:02]} 49. Ne4 {[%emt 0:00:44]} Kf4 {[%emt 0:00:19]} 50. Nd6 {[%emt 0:00:21]} b5 {[%emt 0:00:11]} 51. Nxb5 {[%emt 0:00:04]} Nxb5 {[%emt 0:00:02] Black had all chances to win.   Weighted Error Value: White=0.14 (very precise) /Black=0.14 (very precise) .  Mistake:       	White=2     	Black=3      Inaccurate:     	White=4     	---        OK:         	White=18    	Black=21     Best:        	White=4     	Black=2      Strong:       	White=2     	---} 1/2-1/2

[Event "FIDE World Cup O12-TB 2024"]
[Site "Batumi"]
[Date "2024.07.01"]
[Round "1.3"]
[White "Guo, Ethan"]
[Black "Ibrahimli, Suat"]
[Result "1-0"]
[ECO "B81"]
[WhiteElo "2136"]
[BlackElo "1852"]
[Annotator "TA"]
[PlyCount "63"]
[EventDate "2024.06.23"]
[EventType "swiss"]
[EventCountry "GEO"]
[SourceTitle "playchess.com"]
[Source "ChessBase"]
[SourceQuality "1"]
[TimeControl "5400+30"]

{[%evp 13,63,20,12,14,5,7,21,21,33,23,44,49,41,54,56,55,39,-4,85,24,327,329,316,339,392,396,403,384,376,380,433,445,481,472,538,524,705,760,760,756,739,731,874,846,748,697,992,992,987,986,972,968]} 1. e4 {[%emt 0:00:46]} c5 {[%emt 0:00:27]} 2. Nf3 {[%emt 0:00:06]} e6 {[%emt 0:00:03]} 3. d4 {[%emt 0:00:09]} cxd4 {[%emt 0:00:04]} 4. Nxd4 {[%emt 0:00:06]} Nf6 {[%emt 0:00:03]} 5. Nc3 {[%emt 0:00:15]} d6 {[%emt 0:00:05]} 6. g4 {[%emt 0:00:39]} h6 {[%emt 0:00:04]} 7. h4 {[%emt 0:00:42]} Nc6 {[%emt 0:00:06]} 8. Nb3 {[%emt 0:02:03]} d5 {[%emt 0:07:32]} 9. exd5 {[%emt 0:05:58]} Nxd5 {[%emt 0:00:21]} 10. Nxd5 {[%emt 0:02:50] The position is equal.} exd5 {[%emt 0:00:49]} 11. Be3 {[%emt 0:03:54]} Be7 {[%emt 0:04:41]} 12. Qe2 {[%emt 0:06:56]} Be6 {[%emt 0:08:16][%cal Od5d4]} 13. O-O-O {[%emt 0:01:00]} Qd7 {[%emt 0:01:05]} 14. Rg1 {[%emt 0:05:10]} O-O-O {[%emt 0:23:09]} 15. f4 {[%emt 0:07:31]} g6 {[%emt 0:03:58]} (15... d4 $11 {keeps the balance.}) 16. h5 {[%emt 0:04:14]} ({Better is} 16. Bh3 $16) 16... gxh5 $2 {[%emt 0:02:35][%mdl 8192] This costs Black the game.} (16... d4 $11 {and Black has nothing to worry.}) 17. f5 $18 {[%emt 0:02:39]} ({Less strong is} 17. gxh5 Rhe8 $11) 17... hxg4 {[%emt 0:45:42]} 18. fxe6 {[%emt 0:00:36]} fxe6 {[%emt 0:00:00][%cal Bf7e6,Be6e5][%mdl 32]} 19. Rxg4 {[%emt 0:00:29]} e5 {[%emt 0:00:00]} 20. Bh3 {[%emt 0:00:46] [#] Black must now prevent Rg3.} Kb8 {[%emt 0:00:00]} 21. Qg2 {[%emt 0:00:41]} Qc7 {[%emt 0:00:00]} 22. Rxd5 {[%emt 0:03:20] White is clearly winning.} Rxd5 {[%emt 0:00:00]} 23. Qxd5 {[%emt 0:00:10]} Nb4 {[%emt 0:00:00]} 24. Qe4 {[%emt 0:01:30]} Nxa2+ {[%emt 0:00:00]} 25. Kb1 {[%emt 0:00:10]} Nb4 {[%emt 0:00:00]} 26. c3 {[%emt 0:50:50]} Nc6 {[%emt 0:00:00]} 27. Rg7 {[%emt 0:00:00]} Qd8 {[%emt 0:00:00]} 28. Bc5 {[%emt 0:00:00] [#] aiming for Bxe7.} Re8 {[%emt 0:00:00]} 29. Bg4 {[%emt 0:00:00]} Bxc5 {[%emt 0:00:00]} 30. Nxc5 {[%emt 0:00:00]} Re7 {[%emt 0:00:00]} 31. Rg6 {[%emt 0:00:00]} Qe8 {[%emt 0:00:00]} 32. Be6 {[%emt 0:00:00] Weighted Error Value: White=0.13 (very precise) /Black=0.50.  Loses game:     	---       	Black=1      Mistake:       	White=1     	Black=1      Inaccurate:     	White=1     	Black=1      OK:         	White=8     	Black=5      Best:        	White=3     	Black=1} 1-0

[Event "FIDE World Cup O12-TB 2024"]
[Site "Batumi"]
[Date "2024.07.01"]
[Round "1.4"]
[White "Batbaatar, Baatar"]
[Black "Syed Abdul Khader"]
[Result "1-0"]
[ECO "C45"]
[WhiteElo "1724"]
[BlackElo "2050"]
[Annotator "RC"]
[PlyCount "133"]
[EventDate "2024.06.23"]
[EventType "swiss"]
[EventCountry "GEO"]
[SourceTitle "playchess.com"]
[Source "ChessBase"]
[SourceQuality "1"]
[TimeControl "5400+30"]

1. e4 {[%emt 0:00:01]} e5 {[%emt 0:00:30]} 2. Nf3 {[%emt 0:00:06]} Nc6 {[%emt 0:00:04]} 3. d4 {[%emt 0:00:03]} exd4 {[%emt 0:01:26]} 4. Nxd4 {[%emt 0:00:06]} Bc5 {[%emt 0:01:30]} 5. Nb3 {[%emt 0:00:05]} Bb6 {[%emt 0:01:00]} 6. Nc3 {[%emt 0:00:08]} Nf6 {[%emt 0:00:33]} 7. Qe2 {[%emt 0:01:59]} a5 {[%emt 0:02:12]} 8. a4 {[%emt 0:00:21]} O-O {[%emt 0:00:08]} 9. Bg5 {[%emt 0:00:07]} h6 {[%emt 0:04:24]} 10. Bh4 {[%emt 0:01:07]} Re8 {[%emt 0:00:07]} 11. O-O-O {[%emt 0:04:00]} Nb4 {[%emt 0:02:36]} 12. f3 {[%emt 0:09:10]} d5 {[%emt 0:08:37]} 13. Kb1 {[%emt 0:11:08]} d4 {[%emt 0:37:51]} 14. Nb5 {[%emt 0:07:35]} c5 {[%emt 0:00:29]} 15. c3 {[%emt 0:02:02]} Be6 {[%emt 0:01:20]} 16. Nc1 {[%emt 0:01:25]} Nc6 {[%emt 0:01:29]} 17. c4 {[%emt 0:02:53]} Ne5 {[%emt 0:03:10]} 18. Qc2 {[%emt 0:03:04]} Ng6 {[%emt 0:00:38]} 19. Bf2 {[%emt 0:01:01]} Rf8 {[%emt 0:08:07]} 20. g4 {[%emt 0:05:58]} Nd7 {[%emt 0:01:15]} 21. Bg3 {[%emt 0:03:57]} Qf6 {[%emt 0:02:37]} 22. Be2 {[%emt 0:06:18]} Nde5 {[%emt 0:00:31]} 23. Rdf1 {[%emt 0:02:37]} Nf4 {[%emt 0:05:10]} 24. Nd3 {[%emt 0:05:00]} Nexd3 {[%emt 0:06:03]} 25. Bxd3 {[%emt 0:00:12]} Bd7 {[%emt 0:01:24]} 26. Qd2 {[%emt 0:08:29]} g5 {[%emt 0:02:01]} 27. h4 {[%emt 0:01:28]} Bxb5 {[%emt 0:00:06]} 28. hxg5 {[%emt 0:00:53]} hxg5 {[%emt 0:00:18]} 29. e5 {[%emt 0:02:51]} Qxe5 {[%emt 0:00:24]} 30. Qh2 {[%emt 0:00:24]} Rfd8 {[%emt 0:02:15]} 31. Bxf4 {[%emt 0:01:23]} gxf4 {[%emt 0:01:03]} 32. Qh7+ {[%emt 0:00:48]} Kf8 {[%emt 0:00:01]} 33. Qh6+ {[%emt 0:00:13]} Qg7 {[%emt 0:00:02]} 34. Qxb6 {[%emt 0:00:14]} Bc6 {[%emt 0:01:19]} 35. Qxc5+ {[%emt 0:00:11]} Ke8 {[%emt 0:00:05]} 36. Re1+ {[%emt 0:00:14]} Kd7 {[%emt 0:00:04]} 37. Qe7+ {[%emt 0:00:07]} Kc8 {[%emt 0:00:03]} 38. Bf5+ {[%emt 0:00:55]} Bd7 {[%emt 0:00:13]} 39. Qc5+ {[%emt 0:00:19]} Kb8 {[%emt 0:00:05]} 40. Bxd7 {[%emt 0:00:05]} d3 {[%emt 0:00:17]} 41. Qd6+ {[%emt 0:01:56]} Ka7 {[%emt 0:00:05]} 42. Qxd3 {[%emt 0:00:21]} f5 {[%emt 0:00:09]} 43. Rd1 {[%emt 0:00:22]} fxg4 {[%emt 0:00:09]} 44. fxg4 {[%emt 0:00:09]} Rac8 {[%emt 0:10:40]} 45. Qf5 {[%emt 0:00:26]} Rc7 {[%emt 0:00:00]} 46. Qxa5+ {[%emt 0:00:11]} Kb8 {[%emt 0:00:00]} 47. Bf5 {[%emt 0:00:13]} Re8 {[%emt 0:00:00]} 48. Rhe1 {[%emt 0:00:37]} Rf8 {[%emt 0:00:00]} 49. Qe5 {[%emt 0:00:24]} Qxe5 {[%emt 0:00:00]} 50. Rxe5 {[%emt 0:00:07]} Rxc4 {[%emt 0:00:00]} 51. Re4 {[%emt 0:00:11]} Rxe4 {[%emt 0:00:00]} 52. Bxe4 {[%emt 0:00:06]} Re8 {[%emt 0:00:00]} 53. Bf5 {[%emt 0:00:08]} f3 {[%emt 0:00:00]} 54. Rf1 {[%emt 0:00:10]} Re3 {[%emt 0:00:00]} 55. g5 {[%emt 0:00:08]} b5 {[%emt 0:00:00]} 56. axb5 {[%emt 0:00:13]} Kb7 {[%emt 0:00:00]} 57. g6 {[%emt 0:00:09]} f2 {[%emt 0:00:00]} 58. Rxf2 {[%emt 0:00:04]} Rg3 {[%emt 0:00:00]} 59. Kc2 {[%emt 0:00:08]} Kb6 {[%emt 0:00:00]} 60. Bd3 {[%emt 0:00:16]} Kc5 {[%emt 0:00:00]} 61. Kc3 {[%emt 0:00:09]} Kd5 {[%emt 0:00:00]} 62. b6 {[%emt 0:00:31]} Kc6 {[%emt 0:00:00]} 63. Rf6+ {[%emt 0:00:06]} Kb7 {[%emt 0:00:00]} 64. Kd4 {[%emt 0:00:19]} Kb8 {[%emt 0:00:00]} 65. Be4 {[%emt 0:00:05]} Kc8 {[%emt 0:00:00]} 66. b7+ {[%emt 0:00:08]} Kd7 {[%emt 0:00:00]} 67. b8=Q {[%emt 0:00:07]} 1-0

[Event "FIDE World Cup O12-TB 2024"]
[Site "Batumi"]
[Date "2024.07.01"]
[Round "1.5"]
[White "Wang, Ted"]
[Black "Aadik Theophane Lenin"]
[Result "1-0"]
[ECO "A04"]
[WhiteElo "2034"]
[BlackElo "1852"]
[Annotator "TA"]
[PlyCount "87"]
[EventDate "2024.06.23"]
[EventType "swiss"]
[EventCountry "GEO"]
[SourceTitle "playchess.com"]
[Source "ChessBase"]
[SourceQuality "1"]
[TimeControl "5400+30"]

{[%evp 12,87,8,0,0,0,0,0,0,0,0,0,0,-2,15,12,102,90,152,150,165,164,160,132,137,129,128,75,80,74,83,71,70,64,65,64,104,85,152,148,145,105,118,118,125,117,118,118,112,15,283,289,460,464,441,408,454,439,476,506,487,412,475,470,602,604,602,530,668,839,839,773,29964,29965,29963,29963,6307,5254]} 1. e4 {[%emt 0:00:05]} c5 {[%emt 0:00:32]} 2. Nf3 {[%emt 0:00:35]} e6 {[%emt 0:00:03]} 3. d3 {[%emt 0:00:08]} Nc6 {[%emt 0:00:04]} 4. g3 {[%emt 0:00:12]} g6 {[%emt 0:00:04]} 5. Bg2 {[%emt 0:00:26]} Bg7 {[%emt 0:00:04]} 6. O-O {[%emt 0:00:15]} Nge7 {[%emt 0:00:10]} 7. c3 {[%emt 0:00:51]} e5 {[%emt 0:00:52]} 8. Nbd2 {[%emt 0:00:28]} d6 {[%emt 0:03:57]} 9. a4 {[%emt 0:01:37]} O-O {[%emt 0:02:34] The position is equal.} 10. Nc4 {[%emt 0:03:32]} h6 {[%emt 0:00:19]} 11. Bd2 {[%emt 0:00:44]} f5 {[%emt 0:08:10]} 12. b4 {[%emt 0:03:36]} f4 {[%emt 0:22:38]} 13. b5 {[%emt 0:03:37]} Nb8 {[%emt 0:00:44]} (13... Na5 $11 {remains equal.}) 14. d4 {[%emt 0:02:32] White is more active.} fxg3 {[%emt 0:01:40]} (14... g5 $142) 15. fxg3 $16 {[%emt 0:03:49]} exd4 {[%emt 0:00:33]} 16. cxd4 {[%emt 0:03:26]} Bg4 {[%emt 0:06:55]} 17. dxc5 {[%emt 0:10:52]} dxc5 {[%emt 0:00:31][%cal Og4f3]} 18. Rc1 {[%emt 0:16:22]} Nd7 {[%emt 0:18:51]} 19. Qb3 {[%emt 0:06:10]} ({Better is} 19. Qc2) 19... Be6 {[%emt 0:02:28]} 20. Bc3 {[%emt 0:05:55]} Qc7 {[%emt 0:07:00]} 21. Bxg7 {[%emt 0:01:40]} Kxg7 {[%emt 0:00:02]} 22. Qc3+ {[%emt 0:00:34]} Kh7 {[%emt 0:00:29]} 23. Ne3 {[%emt 0:04:52]} a6 {[%emt 0:01:54]} 24. Rfd1 {[%emt 0:01:47]} axb5 {[%emt 0:00:44]} (24... Rad8 $142) 25. axb5 {[%emt 0:00:00]} Ra4 {[%emt 0:03:58]} 26. Qd3 {[%emt 0:04:48] Black must now prevent Qd6.} Qb6 {[%emt 0:06:55]} 27. Qd6 {[%emt 0:01:14]} Nc8 {[%emt 0:00:35]} (27... Qxd6 $2 28. Rxd6 Rxe4 29. Ng5+ hxg5 30. Bxe4 $18) 28. Qxb6 {[%emt 0:00:37]} Ncxb6 {[%emt 0:00:33] [#]} 29. Rd6 $1 {[%emt 0:00:52]} Re8 {[%emt 0:01:09][%cal Ob6c8] [#]} (29... Rxe4 $2 30. Ng5+ hxg5 31. Bxe4 $18) 30. Ne5 {[%emt 0:04:29]} Rd4 $2 {[%emt 0:05:41][%mdl 8192] Loses the game.} (30... Nxe5 $11 {and Black stays safe.} 31. Rxb6 Bc8) 31. Nd5 $1 $18 {[%emt 0:04:13][%cal Be3d5,Bd5f6,Bf6e8,Be8d6][%mdl 32]} Nxe5 {[%emt 0:01:15]} (31... Kg8 $142 32. Nxg6 (32. Rxb6 Nxb6 33. Nxb6 Kg7 $18) 32... Nxd5 (32... Nc8 $2 33. Nge7+ Rxe7 34. Nxe7+ Nxe7 35. Rxe6 $18)) 32. Nf6+ {[%emt 0:00:47]} (32. Rxb6 Bxd5 33. exd5 Rb8 34. Rxc5 Rd1+ 35. Kf2 Rd2+ 36. Ke3 (36. Kg1 h5 $16) 36... Rxg2 $18) 32... Kh8 {[%emt 0:00:03]} 33. Nxe8 {[%emt 0:00:08]} Rxd6 {[%emt 0:00:20]} 34. Nxd6 {[%emt 0:00:01]} Nd3 {[%emt 0:00:06]} 35. Rc3 {[%emt 0:00:42]} c4 {[%emt 0:00:06]} 36. Bf1 {[%emt 0:02:40]} Na4 {[%emt 0:01:19]} 37. Ra3 {[%emt 0:00:46]} Nac5 {[%emt 0:00:30]} 38. Bxd3 {[%emt 0:01:08]} (38. Ra7 c3 39. Bxd3 (39. Nxb7 c2 $14) 39... Nxd3 40. Rxb7 c2 $11) 38... cxd3 {[%emt 0:00:21][%mdl 4096] Endgame. KRN-KBN} 39. Kf2 {[%emt 0:00:58]} Nb3 {[%emt 0:00:11] [#]} 40. Rxb3 $1 {[%emt 0:03:48][%mdl 512]} Bxb3 {[%emt 0:00:03]} 41. Ke3 {[%emt 0:00:08]} (41. Nxb7 $2 d2 42. Nc5 d1=Q $19 (42... d1=B $2 43. b6 $18)) 41... Kg7 {[%emt 0:00:48]} 42. Nxb7 {[%emt 0:00:16]} Kf6 {[%emt 0:00:10]} 43. Nc5 {[%emt 0:00:39]} d2 {[%emt 0:00:07]} 44. Kxd2 {[%emt 0:00:04] Weighted Error Value: White=0.13 (very precise) /Black=0.53.  Loses game:     	---       	Black=1      Mistake:       	White=2     	Black=4      Inaccurate:     	---       	Black=1      OK:         	White=13    	Black=14     Best:        	White=1     	Black=3      Strong:       	White=2     	---} (44. Nxb3 $2 {too greedy.} d1=Q (44... d1=B $2 {loses.} 45. b6 $18) 45. Nd4 Qg1+ 46. Kd3 Qxh2 47. e5+ Ke7 $19 (47... Kxe5 48. Nf3+ Kd5 49. Nxh2 $18)) 1-0

[Event "FIDE World Cup O12-TB 2024"]
[Site "Batumi"]
[Date "2024.07.01"]
[Round "1.6"]
[White "Garakhanov, Shamsi"]
[Black "Yang, ZiLong"]
[Result "0-1"]
[ECO "A68"]
[WhiteElo "1884"]
[BlackElo "1874"]
[Annotator "NA RC"]
[PlyCount "66"]
[EventDate "2024.06.23"]
[EventType "swiss"]
[EventCountry "GEO"]
[SourceTitle "playchess.com"]
[Source "ChessBase"]
[SourceQuality "1"]
[TimeControl "5400+30"]

1. d4 {[%emt 0:00:03]} Nf6 {[%emt 0:00:26]} 2. c4 {[%emt 0:00:07]} c5 {[%emt 0:00:48]} 3. d5 {[%emt 0:01:26]} e6 {[%emt 0:00:09]} 4. Nc3 {[%emt 0:00:34]} exd5 {[%emt 0:00:32]} 5. cxd5 {[%emt 0:00:30]} d6 {[%emt 0:00:04]} 6. e4 {[%emt 0:03:28]} g6 {[%emt 0:01:27]} 7. f4 {[%emt 0:06:07]} Bg7 {[%emt 0:00:22]} 8. Nf3 {[%emt 0:02:16]} O-O {[%emt 0:02:57]} 9. Bd3 {[%emt 0:02:00]} b5 {[%emt 0:23:43]} 10. O-O {[%emt 0:20:10]} c4 {[%emt 0:13:47]} 11. Bb1 {[%emt 0:05:14]} b4 {[%emt 0:01:16]} 12. Ne2 {[%emt 0:07:13]} Re8 {[%emt 0:01:41]} 13. Be3 {[%emt 0:16:25]} Nxe4 {[%emt 0:49:48]} 14. Bd4 {[%emt 0:00:43]} Bxd4+ {[%emt 0:00:00]} 15. Nexd4 {[%emt 0:00:59]} Bb7 {[%emt 0:00:00]} 16. Bxe4 {[%emt 0:15:24]} Rxe4 {[%emt 0:00:00]} 17. f5 {[%emt 0:00:05]} Nd7 {[%emt 0:00:00]} 18. fxg6 {[%emt 0:01:12]} hxg6 {[%emt 0:00:00]} 19. Qd2 {[%emt 0:00:51]} Bxd5 {[%emt 0:00:00]} 20. Nf5 {[%emt 0:06:11]} Qb6+ {[%emt 0:00:00]} 21. Kh1 {[%emt 0:00:04]} Qc5 {[%emt 0:00:00]} 22. Nh6+ {[%emt 0:08:15]} Kg7 {[%emt 0:00:00]} 23. Ng5 {[%emt 0:00:41]} Re7 {[%emt 0:00:00]} 24. Nhxf7 {[%emt 0:01:33]} Rxf7 {[%emt 0:00:00]} 25. Nxf7 {[%emt 0:00:04]} Bxf7 {[%emt 0:00:00]} 26. Qf4 {[%emt 0:00:07]} Rf8 {[%emt 0:00:00]} 27. Rae1 {[%emt 0:00:41]} Be6 {[%emt 0:00:00]} 28. Qh4 {[%emt 0:00:44]} Rxf1+ {[%emt 0:00:00]} 29. Rxf1 {[%emt 0:00:01]} d5 {[%emt 0:00:00]} 30. Re1 {[%emt 0:00:14]} Bf7 {[%emt 0:00:00]} 31. h3 {[%emt 0:00:48]} c3 {[%emt 0:00:03]} 32. bxc3 {[%emt 0:00:17]} bxc3 {[%emt 0:00:01]} 33. Qf4 {[%emt 0:01:00]} d4 {[%emt 0:00:36]} 0-1